bitfinex-derivatives/quotes_ETHF0:USTF0_20251107
["timestamp","ask_amount","ask_price","bid_price","bid_amount"]
[1762520692795,0.00274013,3217.5,3217.3,0.2412]
[1762520693089,0.50387,3217.4,3217.2,0.00322698]
[1762520693292,3.71167,3217.4,3217.2,0.00322698]
[1762520693495,0.2383,3217.3,3217.2,0.00322698]
[1762520696088,7.57867,3217.4,3217.2,0.00322698]
[1762520696290,0.50388,3217.3,3217.2,0.00322698]
[1762520698390,0.74218,3217.3,3217.2,0.00322698]
[1762520700587,0.74218,3217.3,3217.2,6.98e-06]
[1762520701094,0.1027,3217.2,3216.1,3.96706]
[1762520701303,3.2078,3216.5,3216.1,0.2552]
[1762520701494,0.50407,3216.1,3215.7,3.2078]
[1762520701997,3.2078,3216.5,3216.0,0.40076145]
[1762520702199,3.71168,3217.3,3217.2,0.4062]
[1762520702388,3.2078,3217.3,3217.2,0.4062]
[1762520702593,3.71168,3217.3,3216.7,0.50396]
[1762520702792,0.5039,3217.2,3216.8,0.50395]
[1762520702992,0.50392,3217.1,3216.8,0.50395]
[1762520703490,3.2078,3217.3,3216.6,0.151]
[1762520704197,0.50389,3217.3,3217.2,0.4062]
[1762520704394,0.00274013,3217.5,3217.4,0.2552]
[1762520704608,0.00274013,3217.5,3217.4,0.75907]
[1762520704901,0.00274013,3217.5,3217.4,8.75907]
[1762520705103,0.00274013,3217.5,3217.4,8.2552]
[1762520705300,0.50659013,3217.5,3217.4,0.2552]
[1762520705496,0.00274013,3217.5,3217.2,0.151]
[1762520705693,0.50388,3217.3,3217.2,0.151]
[1762520706104,0.00274013,3217.5,3217.4,0.2552]
[1762520706291,3.71156,3218.1,3217.8,0.50379]
[1762520706499,0.50379,3218.0,3217.3,3.2078]
[1762520706702,3.2078,3218.1,3217.8,0.151]
[1762520707096,3.2078,3218.9,3217.9,3.2078]
[1762520707293,0.00227754,3218.9,3218.7,0.2552]
[1762520707594,0.50590754,3218.9,3218.8,0.2552]
[1762520707800,0.50365,3218.8,3218.7,0.00313696]
[1762520708103,3.21007754,3218.9,3218.7,0.00313696]
[1762520708303,3.21007754,3218.9,3218.7,0.25833696]
[1762520708304,0.50365,3218.8,3218.7,0.25833696]
[1762520708892,3.21007754,3218.9,3218.8,0.2552]
[1762520709298,0.00227754,3218.9,3218.8,0.75885]
[1762520709499,0.00227754,3218.9,3218.8,0.2552]
[1762520709705,0.00227754,3218.9,3218.8,3.96665]
[1762520709899,0.00227754,3218.9,3218.8,11.96665]
[1762520710096,3.2078,3220.6,3219.0,0.151]
[1762520710407,3.2078,3220.6,3219.9,0.2552]
[1762520710703,0.50343,3220.2,3219.9,0.2552]
[1762520710908,3.2078,3220.6,3219.9,0.2552]
[1762520711213,3.21129083,3220.6,3219.9,0.76332946]
[1762520711508,3.21129083,3220.6,3220.2,0.4062]
[1762520711806,3.21129083,3220.6,3220.5,0.2552]
[1762520712112,0.00349083,3220.6,3220.5,0.2552]
[1762520713104,3.2078,3221.2,3220.5,8.2552]
[1762520713302,3.2078,3222.4,3221.1,0.2552]
[1762520713504,3.2078,3222.0,3221.2,0.50327]
[1762520713808,0.50324,3221.4,3221.3,0.00465946]
[1762520714207,0.74864,3221.4,3221.3,0.00465946]
[1762520714409,0.24876861,3221.4,3221.3,0.00760936]
[1762520714702,0.00336861,3221.4,3221.3,0.26280936]
[1762520715212,0.00336861,3221.4,3221.3,8.26280936]
[1762520716103,3.2078,3221.6,3221.5,0.2552]
[1762520716304,3.2078,3222.5,3222.3,0.2552]
[1762520716511,0.5032,3221.7,3221.5,3.2078]
[1762520716809,3.2078,3222.5,3221.6,0.50321]
[1762520717013,0.50314,3222.1,3222.0,0.4062]
[1762520717206,0.00220026,3222.1,3222.0,0.90935]
[1762520717414,0.50303,3222.8,3222.0,14.6134]
[1762520717704,0.50303,3222.8,3222.4,0.50308]
[1762520717914,3.2078,3223.0,3222.7,0.2552]
[1762520718301,3.2078,3223.0,3222.9,0.2552]
[1762520718612,0.00340493,3223.0,3222.9,0.2552]
[1762520718805,0.00340493,3223.0,3222.9,14.4608]
[1762520719009,0.00340493,3223.0,3222.9,8.2552]
[1762520719206,4.93e-06,3223.0,3222.9,14.4608]
[1762520719402,3.2078,3224.4,3223.8,0.2552]
[1762520719621,3.2078,3224.4,3224.1,0.50281]
[1762520719814,3.2078,3224.4,3224.3,0.2552]
[1762520720008,0.50275,3224.6,3224.3,0.2552]
[1762520720207,3.2078,3224.8,3224.3,0.75798]
[1762520720411,0.00315004,3224.6,3224.5,0.2552]
[1762520721415,0.50276,3224.5,3224.3,0.00274764]
[1762520721614,0.00315004,3224.6,3224.5,0.2552]
[1762520721803,1.1010658,3227.2,3224.5,0.2552]
[1762520721804,3.2078,3225.2,3225.1,0.2552]
[1762520722010,3.71046,3225.2,3224.9,0.151]
[1762520722210,3.2078,3225.2,3225.1,0.2552]
[1762520722512,3.2078,3225.6,3225.1,0.2552]
[1762520722717,0.50262,3225.4,3225.1,0.2552]
[1762520722913,0.50658265,3225.4,3225.1,0.2552]
[1762520723511,0.50263,3225.3,3225.1,0.2552]
[1762520724113,0.00396265,3225.4,3225.3,0.2552]
[1762520725916,0.50264,3225.3,3225.1,3.2078]
[1762520726818,0.50264,3225.3,3225.0,0.151]
[1762520727022,0.50265,3225.2,3225.1,0.2552]
[1762520727228,3.2078,3226.6,3226.1,0.2552]
[1762520727628,0.50246,3226.4,3226.1,0.2552]
[1762520727832,3.2078,3226.6,3226.0,0.0046521]
[1762520728131,3.2078,3226.2,3225.3,3.2078]
[1762520728326,3.3539,3225.0,3223.2,0.151]
[1762520728521,3.2078,3223.7,3223.6,0.2552]
[1762520728833,3.2078,3223.7,3223.3,0.50294]
[1762520729025,3.2078,3223.7,3223.6,0.2421]
[1762520729230,0.00324916,3223.7,3223.6,0.24477692]
[1762520729432,3.2078,3224.1,3224.0,0.2421]
[1762520729931,3.2078,3224.6,3224.5,0.50276]
[1762520730137,0.50271,3224.8,3224.6,0.50273]
[1762520730324,0.50271,3224.9,3224.2,0.1216]
[1762520730628,0.00257279,3224.9,3224.7,0.50272]
[1762520730830,0.00257279,3224.9,3224.8,0.2421]
[1762520731230,0.50259,3225.6,3225.3,0.2421]
[1762520731626,0.5026,3225.5,3225.1,0.0046521]
[1762520731825,0.50265,3225.3,3225.1,0.0046521]
[1762520732027,0.50265,3225.3,3225.1,0.5073121]
[1762520732232,0.50662254,3225.3,3225.1,0.5073121]
[1762520732430,0.00397254,3225.3,3225.1,0.5073121]
[1762520732736,0.00397254,3225.3,3225.2,0.2421]
[1762520734630,0.50660254,3225.3,3225.1,0.0046521]
[1762520735230,0.75875,3225.2,3225.1,0.0046521]
[1762520735427,0.50265,3225.2,3225.1,0.0046521]
[1762520735629,0.50265,3225.2,3225.1,0.5073121]
[1762520735830,0.50660254,3225.3,3225.2,0.50265]
[1762520736232,0.50265,3225.2,3225.1,0.5073121]
[1762520736540,0.50660254,3225.3,3225.2,0.50265]
[1762520737737,0.50265,3225.2,3225.1,0.0046521]
[1762520738338,0.00397254,3225.3,3225.1,0.0046521]
[1762520738339,0.00397254,3225.3,3225.2,0.50265]
[1762520738535,0.00397254,3225.3,3225.2,0.74475]
[1762520739137,0.00397254,3225.3,3225.2,8.74475]
[1762520739434,3.2078,3225.8,3225.7,0.74467]
[1762520740138,0.50257,3225.7,3225.1,3.2124521]
[1762520740337,3.2078,3225.8,3225.1,3.2124521]
[1762520740529,0.00293592,3225.7,3225.1,3.2124521]
[1762520740734,3.2078,3225.3,3225.1,0.0046521]
[1762520740932,0.74175,3225.2,3225.1,0.0046521]
[1762520741131,3.2078,3225.3,3225.1,0.0046521]
[1762520741533,0.50265,3225.2,3225.1,0.0046521]
[1762520741934,3.2078,3225.3,3225.1,0.5073121]
[1762520742130,0.50265,3225.2,3225.1,0.5073121]
[1762520742334,0.50265,3225.2,3225.1,0.0046521]
[1762520742533,0.74175,3225.2,3225.1,0.0046521]
[1762520742733,0.2391,3225.2,3224.2,3.3294]
[1762520743039,0.50274,3224.6,3224.0,3.2078]
[1762520743237,0.50274,3224.6,3224.5,0.50276]
[1762520743733,3.71054,3224.7,3224.6,0.50274]
[1762520743941,0.50277,3224.5,3224.4,0.50277]
[1762520744142,0.0046521,3224.9,3224.8,0.75481]
[1762520745043,0.0046521,3224.9,3224.8,3.96261]
[1762520745343,3.2078,3225.5,3225.4,0.50262]
[1762520745540,0.50262,3225.4,3225.3,0.2521]
[1762520745744,0.50262,3225.4,3224.9,0.1279]
[1762520746046,3.7104,3225.5,3225.4,0.50262]
[1762520746237,3.7104,3225.5,3224.9,0.1279]
[1762520746238,0.50263,3225.4,3225.3,0.50262]
[1762520746439,3.2078,3225.5,3224.8,3.2078]
[1762520746738,0.50262,3225.4,3225.3,0.50262]
[1762520747236,3.7104,3225.5,3225.4,0.50262]
[1762520747438,3.2078,3225.5,3225.4,0.50262]
[1762520747642,3.2078,3225.5,3225.4,0.75472]
[1762520748840,0.073,3226.8,3226.5,0.50244]
[1762520748841,3.2078,3226.6,3226.5,0.50244]
[1762520749044,0.5024,3226.8,3226.7,0.50241]
[1762520749235,0.75043924,3226.8,3226.2,3.3515521]
[1762520749441,3.2078,3226.6,3226.2,0.1437521]
[1762520749636,3.2078,3226.6,3226.4,0.50246]
[1762520749937,0.50244,3226.5,3226.4,0.00224315]
[1762520750539,0.74154,3226.5,3226.4,0.00224315]
[1762520750732,0.89439,3226.2,3226.1,0.89920287]
[1762520750933,3.2078,3226.2,3226.1,0.89920287]
[1762520751132,3.21129614,3226.6,3226.1,0.89920287]
[1762520751337,3.71029,3226.2,3226.1,0.89920287]
[1762520751533,3.5997,3226.2,3226.1,0.89920287]
[1762520751738,3.71029,3226.2,3226.1,0.90168919]
[1762520751939,4.84663298,3226.2,3226.1,0.00248632]
[1762520752239,4.10219,3226.2,3226.1,0.00248632]
[1762520753842,0.0046521,3226.5,3226.1,0.00248632]
[1762520754041,0.50248,3226.3,3226.2,0.50249]
[1762520754236,0.50248,3226.3,3224.9,12.04124953]
[1762520754237,0.57908,3225.0,3224.8,1.45264953]
[1762520754440,0.50276,3224.5,3224.4,0.1504]
[1762520754639,3.95240805,3224.5,3224.4,0.1504]
[1762520754843,3.2078,3224.5,3224.4,0.1504]
[1762520755044,0.50285,3223.9,3223.8,0.1504]
[1762520755242,0.50285,3223.9,3223.8,0.15366278]
[1762520755243,3.71464791,3223.9,3223.8,0.15366278]
[1762520755542,3.71464791,3223.9,3223.5,0.0046521]
[1762520755543,3.96553107,3223.9,3223.5,0.0046521]
[1762520755847,3.21179791,3223.9,3223.5,0.0046521]
[1762520756047,0.50289,3223.7,3223.5,0.0046521]
[1762520756442,0.50289,3223.7,3223.5,0.00762289]
[1762520757347,0.50289,3223.7,3223.5,0.51053289]
[1762520757546,0.50289,3223.7,3223.5,0.00762289]
[1762520757936,3.21179791,3223.9,3223.5,0.00762289]
[1762520758143,0.50288,3223.7,3223.5,0.00762289]
[1762520760141,0.50288,3223.7,3223.5,0.51053289]
[1762520760342,3.21179791,3223.9,3223.7,0.50288]
[1762520760752,2.8023852,3223.9,3223.8,0.2521]
[1762520760943,2.8023852,3223.9,3223.8,0.1892]
[1762520761650,2.8023852,3223.9,3223.8,0.69207]
[1762520761851,3.3052352,3223.9,3223.8,0.1892]
[1762520762346,0.5029,3223.6,3223.5,0.00762289]
[1762520762548,0.50293,3223.4,3223.3,1.178]
[1762520762748,0.50294,3223.3,3222.7,0.50303]
[1762520762945,3.2078,3223.4,3222.1,3.3582]
[1762520763145,3.2078,3223.4,3223.2,0.65336]
[1762520763347,3.2078,3223.4,3223.3,0.3166]
[1762520763548,3.2078,3223.4,3223.3,0.82204183]
[1762520764849,3.71073,3223.4,3223.3,0.00250183]
[1762520765645,3.2078,3223.4,3223.3,0.50544183]
[1762520765847,3.71073,3223.4,3223.3,0.00250183]
[1762520766849,0.50299,3223.0,3222.9,0.9195]
[1762520767048,0.50304,3222.7,3221.9,3.2078]
[1762520767250,0.50304,3222.7,3222.2,0.5031]
[1762520767552,0.50304,3222.7,3222.4,0.50307]
[1762520767752,0.50304,3222.7,3222.3,0.5031]
[1762520767952,0.50304,3222.7,3222.6,0.15424115]
[1762520768354,0.50304,3222.7,3222.6,0.65729115]
[1762520768648,3.7108,3223.0,3222.9,0.50301]
[1762520768856,3.2078,3223.0,3222.9,0.50301]
[1762520769160,3.2078,3223.0,3222.9,0.81961]
[1762520769652,3.7107,3223.6,3223.5,0.5029]
[1762520770350,0.50684791,3223.9,3223.8,0.69207]
[1762520770845,0.50684791,3223.9,3223.8,0.1892]
[1762520771055,0.50289,3223.7,3223.2,0.1892]
[1762520771353,0.50684791,3223.9,3223.8,0.50287]
[1762520771857,0.50289,3223.7,3223.6,0.50289]
[1762520772849,0.00399791,3223.9,3223.8,0.81947]
[1762520773055,0.00399791,3223.9,3223.8,0.50287]
[1762520773247,0.50294,3223.3,3223.2,0.69216]
[1762520773443,0.50294,3223.3,3223.2,0.1892]
[1762520773651,0.50294,3223.3,3223.2,0.69216]
[1762520773951,3.2078,3223.4,3223.3,0.50294]
[1762520774851,3.2078,3223.4,3222.6,0.15424115]
[1762520775047,0.50299,3223.0,3222.9,0.50301]
[1762520775242,3.2078,3223.4,3222.6,0.15424115]
[1762520775443,0.50308,3222.4,3221.6,3.2078]
[1762520775750,3.71088,3222.4,3222.0,0.1892]
[1762520776357,3.71088,3222.4,3222.1,0.50312]
[1762520776653,0.50313,3222.1,3222.0,0.0905312]
[1762520776955,0.50322,3221.5,3220.8,0.1892]
[1762520777253,3.71102,3221.5,3221.0,0.50329]
[1762520777450,3.71102,3221.5,3220.8,0.1892]
[1762520777649,3.21000423,3221.5,3221.4,0.19225289]
[1762520777857,0.00220423,3221.5,3221.4,0.19225289]
[1762520778451,0.00220423,3221.5,3221.4,0.50885289]
[1762520778754,3.71087,3222.5,3222.3,0.5031]
[1762520778956,3.2078,3222.5,3222.3,0.5031]
[1762520779550,3.21052022,3222.5,3222.3,0.5031]
[1762520779857,3.21052022,3222.5,3222.4,0.3166]
[1762520780551,3.21052022,3222.5,3222.4,0.50308]
[1762520781258,3.21052022,3222.5,3222.4,0.81968]
[1762520781849,0.00272022,3222.5,3222.4,8.81968]
[1762520782055,3.2078,3223.0,3222.9,0.3166]
[1762520782251,0.50301,3222.9,3222.8,0.1892]
[1762520782852,0.50301,3222.9,3222.8,0.69222]
[1762520783157,0.50613918,3222.9,3222.8,0.1892]
[1762520783854,0.00312918,3222.9,3222.8,0.69222]
[1762520784056,0.00312918,3222.9,3222.8,1.00882]
[1762520784656,3.2078,3223.6,3223.5,1.00871]
[1762520784964,3.2078,3224.0,3223.9,0.50285]
[1762520785659,3.21051074,3224.0,3223.9,0.00249283]
[1762520786250,3.21051074,3224.0,3223.9,0.50534283]
[1762520786658,0.00271074,3224.0,3223.9,0.50534283]
[1762520787062,3.71334074,3224.0,3223.9,0.00249283]
[1762520789657,3.21051074,3224.0,3223.9,0.50534283]
[1762520789852,3.21051074,3224.0,3223.9,0.00249283]
[1762520790159,3.71334074,3224.0,3223.9,0.00249283]
[1762520790354,0.50301,3222.9,3222.8,0.1892]
[1762520790554,3.2078,3222.9,3222.8,0.69222]
[1762520790762,3.71081,3222.9,3222.8,0.1892]
[1762520790949,3.2078,3222.9,3222.8,0.69222]
[1762520791460,3.2078,3223.5,3223.4,0.50293]
[1762520791655,3.2078,3223.5,3223.1,0.50296]
[1762520791861,0.50296,3223.3,3223.2,0.50296]
[1762520792061,0.50293,3223.4,3223.3,0.50294]
[1762520792559,0.50297,3223.2,3222.8,0.19317841]
[1762520792755,0.00271074,3224.0,3222.9,0.50299]
[1762520792756,3.71078,3223.1,3222.9,0.50299]
[1762520792957,0.50296,3223.2,3223.1,0.50297]
[1762520793162,0.50295,3223.3,3223.2,0.50295]
[1762520794163,0.50298,3223.1,3223.0,0.50298]
[1762520794364,0.50296,3223.2,3223.1,0.50296]
[1762520795865,0.50301,3222.9,3222.8,0.19317841]
[1762520796060,3.71081,3222.9,3222.8,0.19317841]
[1762520796365,3.2078,3222.9,3222.8,0.69619841]
[1762520796565,0.00271074,3224.0,3223.0,0.50298]
[1762520796566,0.50299,3223.1,3223.0,0.50298]
[1762520796765,0.50299,3223.1,3222.8,0.19317841]
[1762520796766,3.2078,3223.3,3223.2,0.2167]
[1762520796968,3.71074,3223.3,3223.2,0.2167]
[1762520797164,3.71074,3223.3,3222.8,0.19317841]
[1762520797165,0.50301,3222.9,3222.8,0.19317841]
[1762520797360,3.71081,3222.9,3222.8,0.19317841]
[1762520797770,3.71081,3222.9,3222.8,0.00397841]
[1762520798165,3.2078,3222.9,3222.8,0.50699841]
[1762520798361,3.71081,3222.9,3222.8,0.00397841]
[1762520798558,0.50305,3222.6,3222.5,0.0046521]
[1762520799164,0.50322,3221.5,3221.4,0.1892]
[1762520799363,3.71102,3221.5,3221.4,0.1892]
[1762520799666,3.71346401,3221.5,3221.4,0.19238229]
[1762520799870,3.71346401,3221.5,3221.4,0.00318229]
[1762520800058,0.50329,3221.1,3221.0,0.861]
[1762520800260,3.71109,3221.1,3221.0,0.861]
[1762520800662,11.2078,3221.1,3220.7,0.0046521]
[1762520800866,0.50332,3220.9,3220.7,0.0046521]
[1762520801069,0.50332,3220.9,3220.8,0.21900409]
[1762520801461,8.50332,3220.9,3220.8,0.21900409]
[1762520801665,0.50341,3220.3,3220.2,0.2167]
[1762520801868,0.50332,3220.9,3220.7,0.2192]
[1762520802164,3.2078,3220.8,3220.7,0.2192]
[1762520802364,3.2078,3220.8,3220.2,0.2167]
[1762520802365,0.50341,3220.3,3220.2,0.2167]
[1762520802580,3.71121,3220.3,3220.2,0.2167]
[1762520802767,3.71121,3220.3,3220.2,0.22007713]
[1762520807377,3.2078,3220.3,3220.2,0.72350713]
[1762520807571,3.2078,3220.7,3220.6,0.50336]
[1762520808082,3.2078,3221.1,3221.0,0.5033]
[1762520808271,3.2078,3221.1,3220.7,0.72255]
[1762520808475,0.50326,3221.3,3221.0,0.5033]
[1762520808874,0.50327,3221.2,3221.0,0.5033]
[1762520809080,0.5033,3221.0,3220.7,0.72255]
[1762520809380,3.2078,3221.1,3220.7,0.2192]
[1762520810073,0.50333,3220.8,3220.7,0.2192]
[1762520810279,0.50333,3220.9,3220.7,0.72255]
[1762520810477,0.50333,3220.8,3220.7,0.2192]
[1762520813074,3.2078,3221.1,3220.7,0.72255]
[1762520813282,3.2078,3221.1,3220.7,0.2192]
[1762520813283,0.50333,3220.8,3220.7,0.2192]
[1762520815483,3.2078,3221.1,3220.7,0.2192]
[1762520815688,3.2078,3221.1,3221.0,0.3472]
[1762520815884,0.50333,3220.8,3220.7,0.2192]
[1762520820487,3.2078,3221.1,3221.0,0.5033]
[1762520820686,3.2078,3221.1,3220.7,0.2192]
[1762520820687,3.2078,3221.1,3220.8,0.50332]
[1762520820890,0.00244401,3221.5,3221.4,0.2104]
[1762520821192,0.00244401,3221.5,3221.4,1.07824]
[1762520821691,0.00244401,3221.5,3221.4,0.2104]
[1762520821884,0.00244401,3221.5,3221.4,1.07824]
[1762520822080,3.2078,3222.0,3221.9,0.86776]
[1762520822789,3.2078,3222.0,3221.8,0.50317]
[1762520822992,3.21020792,3222.0,3221.9,0.86776]
[1762520823288,0.0046521,3222.3,3222.2,0.86772]
[1762520823485,0.5077521,3222.3,3222.2,0.3646]
[1762520823690,0.50313,3222.1,3222.0,0.2104]
[1762520824290,0.50676201,3222.1,3222.0,0.2104]
[1762520825494,0.50319,3221.7,3221.6,0.0046521]
[1762520825694,3.71099,3221.7,3221.6,0.0046521]
[1762520825890,3.2078,3221.7,3221.6,0.5078621]
[1762520826088,0.00363201,3222.1,3222.0,0.3646]
[1762520826089,3.71456201,3222.1,3222.0,0.3646]
[1762520826290,3.21143201,3222.1,3221.6,0.0046521]
[1762520826590,3.2078,3221.7,3221.6,0.0046521]
[1762520826787,3.71099,3221.7,3221.6,0.0046521]
[1762520828198,3.2078,3221.7,3221.6,0.8724621]
[1762520828797,3.71099,3221.7,3221.6,0.0046521]
[1762520829302,3.2078,3221.7,3221.6,0.5078621]
[1762520829503,3.2078,3221.7,3221.6,0.8724621]
[1762520830107,3.71099,3221.7,3221.6,0.0046521]
[1762520830908,3.71456201,3222.1,3222.0,0.2104]
[1762520834009,3.21143201,3222.1,3222.0,0.2104]
[1762520834196,3.71456201,3222.1,3222.0,0.2104]
[1762520834602,3.71456201,3222.1,3221.6,0.0046521]
[1762520834603,0.50319,3221.7,3221.6,0.0046521]
[1762520834906,0.50333,3220.8,3220.7,0.2192]
[1762520835203,3.71113,3220.8,3220.7,0.2192]
[1762520835803,0.50341,3220.3,3219.6,0.2104]
[1762520836104,3.2078,3220.3,3220.1,0.50344]
[1762520836305,3.2078,3220.3,3220.2,0.58467713]
[1762520836804,3.2078,3220.3,3220.2,0.22007713]
[1762520837403,3.2078,3220.3,3220.2,0.58467713]
[1762520837608,3.2078,3220.3,3220.2,0.22007713]
[1762520837811,3.2078,3220.3,3220.2,0.58467713]
[1762520839110,3.2078,3220.3,3220.2,0.22007713]
[1762520839697,0.0046521,3220.6,3220.2,0.22007713]
[1762520839907,0.5080221,3220.6,3220.4,0.50338]
[1762520840105,0.5080221,3220.6,3220.5,0.50338]
[1762520840303,0.0046521,3220.6,3220.5,0.86798]
[1762520840505,0.5080221,3220.6,3220.5,0.3646]
[1762520840704,0.5080221,3220.6,3220.5,0.86798]
[1762520841002,0.0046521,3220.6,3220.2,0.22007713]
[1762520841207,3.71121,3220.3,3220.2,0.22007713]
[1762520841714,3.2078,3220.3,3220.2,0.58467713]
[1762520842008,3.2078,3220.3,3220.2,1.08810713]
[1762520842706,3.71121,3220.3,3220.2,1.08810713]
[1762520843102,3.71121,3220.3,3220.2,0.22007713]
[1762520844106,3.71121,3220.3,3220.2,0.00337713]
[1762520844409,3.71121,3220.3,3220.2,0.21377713]
[1762520844808,3.2078,3220.3,3220.2,0.71720713]
[1762520845203,3.2078,3220.3,3220.2,1.08180713]
[1762520845909,3.2078,3220.3,3220.2,0.71720713]
[1762520846118,3.71121,3220.3,3220.2,0.21377713]
[1762520846302,3.71121,3220.3,3220.2,0.71720713]
[1762520846511,3.2078,3220.3,3220.2,1.08180713]
[1762520848606,0.0046521,3220.6,3220.5,0.86798]
[1762520849809,0.5080221,3220.6,3220.5,0.86798]
[1762520850115,0.5080221,3220.6,3220.5,0.50338]
[1762520850314,0.50338,3220.5,3220.4,0.50338]
[1762520851414,0.5080221,3220.6,3220.2,0.21377713]
[1762520851614,0.0046521,3220.6,3220.5,0.83718]
[1762520852906,0.5080221,3220.6,3220.5,0.3338]
[1762520853117,0.50339,3220.5,3220.4,0.50338]
[1762520853319,0.50341,3220.3,3220.2,0.21377713]
[1762520854518,0.50341,3220.3,3220.2,0.19997713]
[1762520854519,3.71121,3220.3,3220.2,0.19997713]
[1762520854812,3.87391,3220.3,3220.2,0.00337713]
[1762520855516,3.71121,3220.3,3220.2,0.19997713]
[1762520855720,3.87391,3220.3,3220.2,0.00337713]
[1762520858518,0.5036,3219.1,3219.0,2.4245068]
[1762520858719,3.7114,3219.1,3219.0,0.2104]
[1762520858924,3.2078,3219.5,3219.4,0.83735]
[1762520859115,3.2078,3220.2,3219.9,0.50346]
[1762520859421,0.50344,3220.1,3220.0,0.50346]
[1762520859627,0.50346,3220.0,3219.9,0.00387863]
[1762520859919,0.50344,3220.1,3219.9,0.50734863]
[1762520860921,0.50346,3220.0,3219.9,0.00387863]
[1762520862627,0.50349,3219.8,3219.7,0.00312693]
[1762520862817,3.71129,3219.8,3219.7,2.693e-05]
[1762520863020,0.50357,3219.3,3219.2,0.50358]
[1762520863318,3.71135,3219.4,3219.3,0.50357]
[1762520863521,3.71135,3219.4,3219.3,0.50688675]
[1762520864214,3.2078,3219.4,3219.3,0.50688675]
[1762520864419,0.50352,3219.7,3219.6,0.70981]
[1762520864620,0.50352,3219.7,3219.6,0.2063]
[1762520866730,0.50355,3219.4,3219.3,0.00331675]
[1762520867830,3.71135,3219.4,3219.3,0.00331675]
[1762520868223,0.50366,3218.7,3218.6,2.2141068]
[1762520868528,0.50369,3218.5,3218.4,0.2104]
[1762520868728,0.50377,3218.0,3217.9,2.2141068]
[1762520869028,3.2078,3218.1,3217.8,2.4107068]
[1762520869229,3.2078,3218.1,3217.8,0.19897527]
[1762520869230,0.50379,3217.9,3217.8,0.19897527]
[1762520869423,0.50634716,3217.9,3217.8,0.19897527]
[1762520869626,0.00255716,3217.9,3217.8,0.00237527]
[1762520869827,0.00255716,3217.9,3217.8,0.20867527]
[1762520870023,0.50634716,3217.9,3217.8,0.20867527]
[1762520870632,0.00255716,3217.9,3217.8,1.05997527]
[1762520870839,0.00255716,3217.9,3217.8,0.20867527]
[1762520871037,0.50634716,3217.9,3217.8,0.20867527]
[1762520871331,0.50634716,3217.9,3217.8,0.00237527]
[1762520871537,0.50388,3217.3,3217.2,0.2063]
[1762520872327,0.50397,3216.7,3216.6,0.2063]
[1762520872528,3.2078,3216.7,3215.8,12.8938]
[1762520872732,3.2078,3216.7,3216.0,0.20930053]
[1762520872934,0.50406,3216.2,3216.0,0.20930053]
[1762520873130,3.2078,3216.1,3216.0,0.20930053]
[1762520873333,3.2078,3216.1,3216.0,0.00300053]
[1762520873532,3.2078,3216.1,3216.0,0.20930053]
[1762520873740,3.2078,3216.1,3216.0,0.00300053]
[1762520873934,3.2078,3216.1,3216.0,0.20930053]
[1762520874332,0.50416,3215.5,3215.4,0.2063]
[1762520874532,3.2078,3215.5,3215.4,0.2063]
[1762520875442,3.21084868,3215.5,3214.8,0.2063]
[1762520875635,3.2078,3214.9,3214.8,0.20971242]
[1762520875846,0.00304868,3215.5,3214.8,0.20971242]
[1762520875847,0.00465975,3215.2,3214.8,0.20971242]
[1762520876245,0.50887975,3215.2,3214.8,0.71398242]
[1762520876542,0.50423,3215.1,3214.8,0.71398242]
[1762520877040,0.50425,3215.0,3214.8,0.20971242]
[1762520877245,0.50431,3214.6,3214.0,3.2078]
[1762520877439,3.71206,3214.9,3214.3,0.50434]
[1762520877742,0.50431,3214.6,3214.3,0.50434]
[1762520878140,0.50432,3214.5,3214.3,0.00308639]
[1762520879141,0.5043,3214.7,3214.4,0.50432]
[1762520879744,3.2078,3214.9,3214.8,0.2014]
[1762520880244,0.00465975,3215.2,3214.8,0.2014]
[1762520880445,0.50426,3214.9,3214.8,0.2014]
[1762520880740,0.00465975,3215.2,3214.8,0.2014]
[1762520881043,0.00465975,3215.2,3215.1,0.85363]
[1762520881739,0.00465975,3215.2,3214.8,3.4092]
[1762520881740,3.2078,3216.3,3216.0,0.2014]
[1762520881942,3.2078,3216.3,3216.2,0.50405]
[1762520882143,3.71178,3216.7,3216.6,0.2014]
[1762520882342,3.2078,3216.7,3216.6,0.2014]
[1762520882743,3.71539503,3216.7,3216.6,0.00268548]
[1762520882941,0.50402,3216.4,3216.3,0.00465975]
[1762520883239,3.21141503,3216.7,3216.0,0.2014]
[1762520883455,3.21141503,3216.7,3216.5,0.2014]
[1762520883634,0.50402,3216.4,3216.0,0.2014]
[1762520883835,3.21141503,3216.7,3216.0,0.2014]
[1762520884043,0.50406,3216.2,3216.0,0.2040291]
[1762520884646,0.50407,3216.1,3216.0,0.2040291]
[1762520885045,3.71187,3216.1,3216.0,0.0026291]
[1762520885945,0.50407,3216.1,3216.0,0.2040291]
[1762520886152,3.2078,3216.5,3216.0,0.2040291]
[1762520886343,3.2078,3216.5,3216.1,0.50406]
[1762520886841,3.2078,3216.5,3216.0,0.7080991]
[1762520887038,0.50407,3216.1,3216.0,0.7081191]
[1762520887244,0.50404,3216.4,3216.0,0.2040291]
[1762520887444,3.2078,3216.5,3216.0,0.7081091]
[1762520887657,3.71181,3216.5,3216.3,0.50402]
[1762520888152,0.50402,3216.4,3216.3,0.50402]
[1762520888347,3.2078,3216.5,3216.4,0.50402]
[1762520888547,3.2078,3216.5,3216.4,0.85342]
[1762520888948,0.00361503,3216.7,3216.6,0.70539]
[1762520889650,0.00361503,3216.7,3216.6,1.05479]
[1762520891143,0.00361503,3216.7,3216.6,0.70539]
[1762520891347,0.00361503,3216.7,3216.6,0.2014]
[1762520891549,0.50759503,3216.7,3216.6,0.2014]
[1762520891752,0.50759503,3216.7,3216.6,0.70539]
[1762520891953,0.50759503,3216.7,3216.6,0.2014]
[1762520892152,0.50401,3216.5,3216.4,3.2078]
[1762520892350,0.50405,3216.2,3216.0,0.7081091]
[1762520892959,0.50405,3216.2,3216.1,0.50407]